fUSD/lending_fUSD_20250311
["ID","MTS","AMOUNT","RATE_DAILY","PERIOD"]
[355963552,1741735833091,-500.0,9.297e-05,2]
[355963554,1741735833100,-996.31,9.297e-05,2]
[355963556,1741735833110,-500.0,9.297e-05,2]
[355963558,1741735833119,-500.0,9.297e-05,2]
[355963559,1741735833129,-500.0,9.297e-05,2]
[355963561,1741735833138,-597.47,9.297e-05,2]
[355963563,1741735833148,-500.0,9.297e-05,2]
[355963565,1741735833158,-500.0,9.297e-05,2]
[355963567,1741735833167,-707.7,9.297e-05,2]
[355963569,1741735833177,-500.0,9.297e-05,2]
[355963571,1741735833187,-500.0,9.297e-05,2]
[355963573,1741735833201,-500.0,9.297e-05,2]
[355963575,1741735833210,-574.69,9.297e-05,2]
[355963577,1741735833220,-500.0,9.297e-05,2]
[355963579,1741735833230,-500.0,9.297e-05,2]
[355963581,1741735833239,-500.0,9.297e-05,2]
[355963583,1741735833249,-783.27,9.297e-05,2]
[355963585,1741735833259,-500.0,9.297e-05,2]
[355963587,1741735833270,-500.0,9.297e-05,2]
[355963589,1741735833280,-860.26,9.297e-05,2]
[355963591,1741735833289,-500.0,9.297e-05,2]
[355963592,1741735833298,-500.0,9.297e-05,2]
[355963594,1741735833308,-918.82,9.297e-05,2]
[355963596,1741735833318,-500.0,9.297e-05,2]
[355963598,1741735833329,-817.93,9.297e-05,2]
[355963600,1741735833338,-867.9,9.297e-05,2]
[355963602,1741735833348,-500.0,9.297e-05,2]
[355963604,1741735833357,-962.41,9.297e-05,2]
[355963606,1741735833366,-992.85,9.297e-05,2]
[355963608,1741735833376,-712.31,9.297e-05,2]
[355963610,1741735833385,-1097.0,9.297e-05,2]
[355963612,1741735833394,-500.0,9.297e-05,2]
[355963614,1741735833404,-500.0,9.297e-05,2]
[355963616,1741735833414,-500.0,9.297e-05,2]
[355963618,1741735833423,-1697.03,9.297e-05,2]
[355963620,1741735833432,-500.0,9.297e-05,2]
[355963622,1741735833442,-500.0,9.297e-05,2]
[355963624,1741735833451,-867.51,9.297e-05,2]
[355963625,1741735833460,-1827.93,9.297e-05,2]
[355963627,1741735833469,-500.0,9.297e-05,2]
[355963629,1741735833478,-819.04,9.297e-05,2]
[355963631,1741735833488,-564.48,9.297e-05,2]
[355963633,1741735833496,-1396.13,9.297e-05,2]
[355963635,1741735833504,-500.0,9.297e-05,2]
[355963637,1741735833513,-500.0,9.297e-05,2]
[355963639,1741735833522,-1380.71,9.297e-05,2]
[355963641,1741735833531,-822.84,9.297e-05,2]
[355963643,1741735833537,-500.0,9.297e-05,2]
[355963645,1741735833546,-786.26,9.297e-05,2]
[355963647,1741735833554,-500.0,9.297e-05,2]
[355963648,1741735833562,-686.83,9.297e-05,2]
[355963650,1741735833569,-500.0,9.297e-05,2]
[355963651,1741735833578,-500.0,9.297e-05,2]
[355963653,1741735833588,-529.55,9.297e-05,2]
[355963655,1741735833595,-680.17,9.297e-05,2]
[355963657,1741735833603,-500.0,9.297e-05,2]
[355963658,1741735833610,-853.27,9.297e-05,2]
[355963660,1741735833618,-500.0,9.297e-05,2]
[355963662,1741735833627,-500.0,9.297e-05,2]
[355963664,1741735833637,-1044.06,9.297e-05,2]
[355963666,1741735833646,-500.0,9.297e-05,2]
[355963668,1741735833655,-500.0,9.297e-05,2]
[355963670,1741735833664,-500.0,9.297e-05,2]
[355963672,1741735833673,-838.23,9.297e-05,2]
[355963673,1741735833682,-989.92,9.297e-05,2]
[355963675,1741735833691,-500.0,9.297e-05,2]
[355963677,1741735833701,-590.1,9.297e-05,2]
[355963679,1741735833710,-500.0,9.297e-05,2]
[355963681,1741735833720,-647.32,9.297e-05,2]
[355963683,1741735833729,-500.0,9.297e-05,2]
[355963685,1741735833738,-500.0,9.297e-05,2]
[355963686,1741735833748,-674.88,9.297e-05,2]
[355963688,1741735833757,-1133.58,9.297e-05,2]
[355963690,1741735833767,-750.49,9.297e-05,2]
[355963692,1741735833777,-500.0,9.297e-05,2]
[355963694,1741735833786,-490.21292264,9.297e-05,2]
[355963696,1741735833796,-500.0,9.297e-05,2]
[355963698,1741735833805,-500.0,9.297e-05,2]
[355963699,1741735833814,-682.18,9.297e-05,2]
[355963701,1741735833824,-500.0,9.297e-05,2]
[355963703,1741735833834,-500.0,9.297e-05,2]
[355963705,1741735833843,-738.38,9.297e-05,2]
[355963707,1741735833853,-500.0,9.297e-05,2]
[355963709,1741735833862,-931.16,9.297e-05,2]
[355963711,1741735833871,-646.2,9.297e-05,2]
[355963713,1741735833880,-500.0,9.297e-05,2]
[355963715,1741735833889,-500.0,9.297e-05,2]
[355963716,1741735833898,-500.0,9.297e-05,2]
[355963718,1741735833907,-1382.0,9.297e-05,2]
[355963720,1741735833916,-916.25,9.297e-05,2]
[355963722,1741735833926,-500.0,9.297e-05,2]
[355963724,1741735833935,-500.0,9.297e-05,2]
[355963726,1741735833944,-574.54,9.297e-05,2]
[355963728,1741735833953,-500.0,9.297e-05,2]
[355963730,1741735833963,-831.65,9.297e-05,2]
[355963731,1741735833973,-500.0,9.297e-05,2]
[355963733,1741735833982,-1291.84,9.297e-05,2]
[355963735,1741735833992,-500.0,9.297e-05,2]
[355963737,1741735834001,-761.45,9.297e-05,2]
[355963739,1741735834010,-500.0,9.297e-05,2]
[355963741,1741735834020,-504.04,9.297e-05,2]
[355963743,1741735834030,-500.0,9.297e-05,2]
[355963745,1741735834039,-500.0,9.297e-05,2]
[355963747,1741735834049,-524.95,9.297e-05,2]
[355963748,1741735834058,-500.0,9.297e-05,2]
[355963750,1741735834068,-1838.49,9.297e-05,2]
[355963752,1741735834079,-500.0,9.297e-05,2]
[355963754,1741735834089,-500.0,9.297e-05,2]
[355963756,1741735834099,-500.0,9.297e-05,2]
[355963758,1741735834108,-716.1,9.297e-05,2]
[355963760,1741735834118,-500.0,9.297e-05,2]
[355963762,1741735834128,-500.0,9.297e-05,2]
[355963764,1741735834138,-863.71,9.297e-05,2]
[355963766,1741735834148,-376.11745165,9.297e-05,2]
[355963768,1741735834157,-500.0,9.297e-05,2]
[355963770,1741735834168,-813.8,9.297e-05,2]
[355963772,1741735834178,-514.61,9.297e-05,2]
[355963773,1741735834187,-500.0,9.297e-05,2]
[355963775,1741735834199,-500.0,9.297e-05,2]
[355963777,1741735834209,-1199.72,9.297e-05,2]
[355963779,1741735834218,-801.86,9.297e-05,2]
[355963781,1741735834227,-510.55,9.297e-05,2]
[355963783,1741735834238,-500.0,9.297e-05,2]
[355963785,1741735834247,-500.0,9.297e-05,2]
[355963787,1741735834257,-151.0,9.298e-05,2]
[355963789,1741735834267,-151.0,9.298e-05,2]
[355963791,1741735834280,-500.0,9.298e-05,2]
[355963793,1741735834290,-500.0,9.298e-05,2]
[355963795,1741735834301,-500.0,9.298e-05,2]
[355963797,1741735834311,-637.79,9.298e-05,2]
[355963798,1741735834320,-500.0,9.298e-05,2]
[355963800,1741735834332,-409.98971855,9.298e-05,2]
[355963802,1741735834342,-500.0,9.298e-05,2]
[355963804,1741735834351,-500.0,9.298e-05,2]
[355963806,1741735834361,-500.0,9.298e-05,2]
[355963808,1741735834371,-608.38,9.298e-05,2]
[355963810,1741735834381,-500.0,9.298e-05,2]
[355963812,1741735834391,-232.494687,9.298e-05,2]
[355963814,1741735834401,-232.494687,9.298e-05,2]
[355963816,1741735834410,-692.69,9.298e-05,2]
[355963818,1741735834420,-500.0,9.298e-05,2]
[355963820,1741735834429,-500.0,9.298e-05,2]
[355963822,1741735834439,-500.0,9.298e-05,2]
[355963824,1741735834449,-558.1018363,9.298e-05,2]
[355963825,1741735834458,-500.0,9.298e-05,2]
[355963827,1741735834467,-530.79,9.298e-05,2]
[355963829,1741735834476,-500.0,9.298e-05,2]
[355963831,1741735834485,-500.0,9.298e-05,2]
[355963833,1741735834494,-151.0,9.298e-05,2]
[355963835,1741735834503,-500.0,9.298e-05,2]
[355963837,1741735834512,-654.35,9.298e-05,2]
[355963839,1741735834521,-802.48,9.298e-05,2]
[355963841,1741735834530,-500.0,9.298e-05,2]
[355963843,1741735834539,-500.0,9.298e-05,2]
[355963844,1741735834548,-500.0,9.298e-05,2]
[355963846,1741735834557,-500.0,9.298e-05,2]
[355963848,1741735834566,-236.421498,9.298e-05,2]
[355963850,1741735834575,-500.0,9.298e-05,2]
[355963852,1741735834584,-236.421498,9.298e-05,2]
[355963854,1741735834594,-500.0,9.298e-05,2]
[355963856,1741735834603,-151.0,9.298e-05,2]
[355963858,1741735834612,-500.0,9.298e-05,2]
[355963860,1741735834621,-500.0,9.298e-05,2]
[355963862,1741735834630,-500.0,9.298e-05,2]
[355963864,1741735834639,-151.0,9.298e-05,2]
[355963865,1741735834648,-721.45,9.298e-05,2]
[355963867,1741735834657,-500.0,9.298e-05,2]
[355963869,1741735834667,-219.848101,9.298e-05,2]
[355963871,1741735834676,-500.0,9.298e-05,2]
[355963873,1741735834685,-151.0,9.298e-05,2]
[355963875,1741735834694,-151.0,9.298e-05,2]
[355963877,1741735834703,-217.599936,9.298e-05,2]
[355963879,1741735834713,-500.0,9.298e-05,2]
[355963881,1741735834722,-500.0,9.298e-05,2]
[355963883,1741735834731,-728.04,9.298e-05,2]
[355963885,1741735834740,-600.3,9.298e-05,2]
[355963887,1741735834750,-500.0,9.298e-05,2]
[355963889,1741735834759,-604.92,9.298e-05,2]
[355963890,1741735834768,-500.0,9.298e-05,2]
[355963892,1741735834777,-500.0,9.298e-05,2]
[355963894,1741735834786,-500.0,9.298e-05,2]
[355963896,1741735834795,-151.0,9.298e-05,2]
[355963898,1741735834804,-151.121873,9.298e-05,2]
[355963900,1741735834813,-500.0,9.298e-05,2]
[355963902,1741735834822,-500.0,9.298e-05,2]
[355963904,1741735834831,-500.0,9.298e-05,2]
[355963906,1741735834841,-500.0,9.298e-05,2]
[355963908,1741735834850,-841.62,9.298e-05,2]
[355963910,1741735834861,-812.91,9.298e-05,2]
[355963912,1741735834870,-500.0,9.298e-05,2]
[355963914,1741735834879,-500.0,9.298e-05,2]
[355963916,1741735834889,-500.0,9.298e-05,2]
[355963918,1741735834898,-151.0,9.298e-05,2]
[355963920,1741735834907,-939.14,9.298e-05,2]
[355963922,1741735834916,-922.22,9.298e-05,2]
[355963924,1741735834926,-500.0,9.298e-05,2]
[355963926,1741735834935,-151.0,9.298e-05,2]
[355963928,1741735834945,-151.0,9.298e-05,2]
[355963930,1741735834954,-500.0,9.298e-05,2]
[355963932,1741735834963,-670.4,9.298e-05,2]
[355963934,1741735834972,-165.532252,9.298e-05,2]
[355963936,1741735834981,-500.0,9.298e-05,2]
[355963938,1741735834990,-500.0,9.298e-05,2]
[355963940,1741735835000,-535.9,9.298e-05,2]
[355963942,1741735835009,-159.779497,9.298e-05,2]
[355963944,1741735835018,-500.0,9.298e-05,2]
[355963945,1741735835028,-500.0,9.298e-05,2]
[355963947,1741735835038,-500.0,9.298e-05,2]
[355963949,1741735835048,-500.0,9.298e-05,2]
[355963951,1741735835058,-500.0,9.298e-05,2]
[355963953,1741735835067,-500.0,9.298e-05,2]
[355963955,1741735835076,-500.0,9.298e-05,2]
[355963957,1741735835087,-151.0,9.298e-05,2]
[355963959,1741735835096,-151.0,9.298e-05,2]
[355963961,1741735835106,-500.0,9.298e-05,2]
[355963963,1741735835115,-500.0,9.298e-05,2]
[355963965,1741735835124,-500.0,9.298e-05,2]
[355963967,1741735835134,-788.16,9.298e-05,2]
[355963968,1741735835143,-500.0,9.298e-05,2]
[355963970,1741735835152,-500.0,9.298e-05,2]
[355963972,1741735835162,-500.0,9.298e-05,2]
[355963974,1741735835172,-500.0,9.298e-05,2]
[355963976,1741735835182,-500.0,9.298e-05,2]
[355963978,1741735835192,-500.0,9.298e-05,2]
[355963980,1741735835206,-500.0,9.298e-05,2]
[355963982,1741735835215,-500.0,9.298e-05,2]
[355963984,1741735835224,-605.92313007,9.298e-05,2]
[355963986,1741735835235,-500.0,9.298e-05,2]
[355963988,1741735835244,-500.0,9.298e-05,2]
[355963990,1741735835254,-500.0,9.298e-05,2]
[355963992,1741735835263,-500.0,9.298e-05,2]
[355963994,1741735835272,-500.0,9.298e-05,2]
[355963996,1741735835282,-500.0,9.298e-05,2]
[355963998,1741735835291,-500.0,9.298e-05,2]
[355964000,1741735835299,-805.16,9.298e-05,2]
[355964002,1741735835308,-500.0,9.298e-05,2]
[355964003,1741735835317,-500.0,9.298e-05,2]
[355964005,1741735835326,-500.0,9.298e-05,2]
[355964007,1741735835336,-500.0,9.298e-05,2]
[355964009,1741735835346,-500.0,9.298e-05,2]
[355964011,1741735835355,-505.61,9.298e-05,2]
[355964013,1741735835364,-754.68,9.298e-05,2]
[355964015,1741735835374,-500.0,9.298e-05,2]
[355964017,1741735835383,-500.0,9.298e-05,2]
[355964019,1741735835392,-680.73,9.298e-05,2]
[355964021,1741735835401,-500.0,9.298e-05,2]
[355964023,1741735835410,-500.0,9.298e-05,2]
[355964025,1741735835419,-500.0,9.298e-05,2]
[355964027,1741735835428,-500.0,9.298e-05,2]
[355964029,1741735835437,-500.0,9.298e-05,2]
[355964031,1741735835447,-500.0,9.298e-05,2]
[355964033,1741735835455,-598.77,9.298e-05,2]
[355964035,1741735835464,-500.0,9.298e-05,2]
[355964037,1741735835474,-500.0,9.298e-05,2]
[355964039,1741735835483,-500.0,9.298e-05,2]
[355964041,1741735835492,-500.0,9.298e-05,2]
[355964043,1741735835501,-500.0,9.298e-05,2]
[355964045,1741735835510,-151.0,9.298e-05,2]
[355964047,1741735835519,-500.0,9.298e-05,2]
[355964049,1741735835529,-151.0,9.298e-05,2]
[355964050,1741735835538,-640.54,9.298e-05,2]
[355964052,1741735835547,-500.0,9.298e-05,2]
[355964053,1741735835556,-789.2,9.298e-05,2]
[355964054,1741735835565,-513.48,9.298e-05,2]
[355964055,1741735835574,-500.0,9.298e-05,2]
[355964056,1741735835585,-500.0,9.298e-05,2]
[355964057,1741735835594,-262.268981,9.298e-05,2]
[355964058,1741735835603,-262.268981,9.298e-05,2]
[355964059,1741735835612,-500.0,9.298e-05,2]
[355964060,1741735835621,-155.63095746,9.298e-05,2]
[355964061,1741735835630,-262.268981,9.298e-05,2]
[355964062,1741735835640,-262.268981,9.298e-05,2]
[355964063,1741735835649,-500.0,9.298e-05,2]
[355964064,1741735835658,-500.0,9.298e-05,2]
[355964065,1741735835667,-500.0,9.298e-05,2]
[355964066,1741735835676,-714.76,9.298e-05,2]
[355964067,1741735835685,-500.0,9.298e-05,2]
[355964068,1741735835694,-500.0,9.298e-05,2]
[355964069,1741735835703,-250.848674,9.298e-05,2]
[355964070,1741735835712,-500.0,9.298e-05,2]
[355964071,1741735835721,-153.9773,9.298e-05,2]
[355964072,1741735835730,-584.05990256,9.298e-05,2]
[355964073,1741735835739,-500.0,9.298e-05,2]
[355964074,1741735835748,-500.0,9.298e-05,2]
[355964075,1741735835757,-500.0,9.298e-05,2]
[355964076,1741735835766,-500.0,9.298e-05,2]
[355964077,1741735835775,-215.69083,9.298e-05,2]
[355964078,1741735835785,-215.69083,9.298e-05,2]
[355964079,1741735835794,-500.0,9.298e-05,2]
[355964080,1741735835803,-215.69083,9.298e-05,2]
[355964081,1741735835812,-500.0,9.298e-05,2]
[355964082,1741735835821,-809.72,9.298e-05,2]
[355964083,1741735835831,-215.69083,9.298e-05,2]
[355964085,1741735835841,-500.0,9.298e-05,2]
[355964087,1741735835850,-500.0,9.298e-05,2]
[355964089,1741735835859,-151.0,9.298e-05,2]
[355964091,1741735835868,-151.0,9.298e-05,2]
[355964093,1741735835878,-500.35,9.298e-05,2]
[355964095,1741735835887,-151.0,9.298e-05,2]
[355964097,1741735835896,-151.0,9.298e-05,2]
[355964099,1741735835905,-151.0,9.298e-05,2]
[355964101,1741735835914,-203.010069,9.298e-05,2]
[355964102,1741735835923,-500.0,9.298e-05,2]
[355964104,1741735835933,-500.0,9.298e-05,2]
[355964106,1741735835942,-500.0,9.298e-05,2]
[355964108,1741735835951,-500.0,9.298e-05,2]
[355964110,1741735835960,-500.0,9.298e-05,2]
[355964112,1741735835969,-553.22,9.298e-05,2]
[355964114,1741735835978,-500.0,9.298e-05,2]
[355964138,1741735836200,-185.803166,9.298e-05,2]
[355964140,1741735836211,-185.803166,9.298e-05,2]
[355964142,1741735836221,-185.803166,9.298e-05,2]
[355964144,1741735836231,-732.34,9.298e-05,2]
[355964146,1741735836241,-643.0,9.298e-05,2]
[355964148,1741735836250,-185.803166,9.298e-05,2]
[355964150,1741735836259,-185.803166,9.298e-05,2]
[355964152,1741735836268,-185.803166,9.298e-05,2]
[355964154,1741735836279,-800.24,9.298e-05,2]
[355964156,1741735836288,-500.0,9.298e-05,2]
[355964158,1741735836298,-974.08,9.298e-05,2]
[355964160,1741735836307,-151.0,9.298e-05,2]
[355964162,1741735836316,-151.0,9.298e-05,2]
[355964164,1741735836325,-151.0,9.298e-05,2]
[355964166,1741735836335,-944.08,9.298e-05,2]
[355964168,1741735836345,-632.79,9.298e-05,2]
[355964170,1741735836355,-500.0,9.298e-05,2]
[355964172,1741735836364,-151.0,9.298e-05,2]
[355964174,1741735836373,-151.0,9.298e-05,2]
[355964176,1741735836383,-500.0,9.298e-05,2]
[355964178,1741735836392,-500.0,9.298e-05,2]
[355964179,1741735836401,-500.0,9.298e-05,2]
[355964180,1741735836411,-151.0,9.298e-05,2]
[355964181,1741735836420,-151.0,9.298e-05,2]
[355964182,1741735836429,-151.0,9.298e-05,2]
[355964183,1741735836438,-571.86,9.298e-05,2]
[355964184,1741735836447,-500.0,9.298e-05,2]
[355964185,1741735836456,-500.0,9.298e-05,2]
[355964186,1741735836465,-500.0,9.298e-05,2]
[355964187,1741735836475,-500.0,9.298e-05,2]
[355964188,1741735836485,-500.0,9.298e-05,2]
[355964189,1741735836494,-151.0,9.298e-05,2]
[355964190,1741735836503,-500.0,9.298e-05,2]
[355964191,1741735836512,-574.09,9.298e-05,2]
[355964192,1741735836522,-948.88,9.298e-05,2]
[355964193,1741735836531,-500.0,9.298e-05,2]
[355964194,1741735836540,-700.67,9.298e-05,2]
[355964195,1741735836548,-500.0,9.298e-05,2]
[355964196,1741735836558,-500.0,9.298e-05,2]
[355964197,1741735836567,-707.74,9.298e-05,2]
[355964198,1741735836576,-500.0,9.298e-05,2]
[355964199,1741735836587,-589.51,9.298e-05,2]
[355964200,1741735836595,-687.42,9.298e-05,2]
[355964201,1741735836605,-151.0,9.298e-05,2]
[355964202,1741735836614,-151.0,9.298e-05,2]
[355964203,1741735836623,-151.0,9.298e-05,2]
[355964204,1741735836632,-598.79,9.298e-05,2]
[355964205,1741735836642,-599.16380436,9.298e-05,2]
[355964206,1741735836651,-500.0,9.298e-05,2]
[355964207,1741735836660,-500.0,9.298e-05,2]
[355964208,1741735836670,-204.546493,9.298e-05,2]
[355964209,1741735836679,-204.546493,9.298e-05,2]
[355964210,1741735836688,-204.546493,9.298e-05,2]
[355964211,1741735836697,-204.546493,9.298e-05,2]
[355964212,1741735836707,-204.546493,9.298e-05,2]
[355964213,1741735836716,-204.546493,9.298e-05,2]
[355964214,1741735836725,-500.0,9.298e-05,2]
[355964215,1741735836734,-1177.35,9.298e-05,2]
[355964216,1741735836743,-500.0,9.298e-05,2]
[355964217,1741735836752,-636.8,9.298e-05,2]
[355964218,1741735836762,-931.52,9.298e-05,2]
[355964219,1741735836771,-151.0,9.298e-05,2]
[355964220,1741735836780,-151.0,9.298e-05,2]
[355964221,1741735836789,-249.452581,9.298e-05,2]
[355964222,1741735836799,-726.39,9.298e-05,2]
[355964223,1741735836808,-155.068867,9.298e-05,2]
[355964224,1741735836817,-500.0,9.298e-05,2]
[355964225,1741735836826,-501.6,9.298e-05,2]
[355964226,1741735836836,-500.0,9.298e-05,2]
[355964227,1741735836845,-500.0,9.298e-05,2]
[355964228,1741735836854,-500.0,9.298e-05,2]
[355964229,1741735836863,-500.0,9.298e-05,2]
[355964230,1741735836872,-533.63,9.298e-05,2]
[355964231,1741735836882,-500.0,9.298e-05,2]
[355964232,1741735836891,-809.55,9.298e-05,2]
[355964233,1741735836900,-774.107221,9.298e-05,2]
[355964234,1741735836909,-774.107221,9.298e-05,2]
[355964235,1741735836919,-774.107221,9.298e-05,2]
[355964236,1741735836928,-774.107221,9.298e-05,2]
[355964237,1741735836937,-774.107221,9.298e-05,2]
[355964238,1741735836947,-500.0,9.298e-05,2]
[355964239,1741735836957,-774.107221,9.298e-05,2]
[355964240,1741735836966,-774.107221,9.298e-05,2]
[355964241,1741735836975,-774.107221,9.298e-05,2]
[355964242,1741735836984,-359.699493,9.298e-05,2]
[355964243,1741735836994,-359.699493,9.298e-05,2]
[355964244,1741735837004,-359.699493,9.298e-05,2]
[355964245,1741735837013,-500.0,9.298e-05,2]
[355964246,1741735837022,-359.699493,9.298e-05,2]
[355964247,1741735837031,-359.699493,9.298e-05,2]
[355964248,1741735837040,-359.699493,9.298e-05,2]
[355964249,1741735837050,-837.82,9.298e-05,2]
[355964250,1741735837059,-500.0,9.298e-05,2]
[355964251,1741735837068,-829.96,9.298e-05,2]
[355964252,1741735837077,-1326.378877,9.298e-05,2]
[355964253,1741735837088,-1326.378877,9.298e-05,2]
[355964254,1741735837097,-1326.378877,9.298e-05,2]
[355964255,1741735837107,-1326.378877,9.298e-05,2]
[355964256,1741735837117,-500.0,9.298e-05,2]
[355964257,1741735837127,-1326.378877,9.298e-05,2]
[355964258,1741735837136,-1326.378877,9.298e-05,2]
[355964259,1741735837145,-1326.378877,9.298e-05,2]
[355964260,1741735837155,-1326.378877,9.298e-05,2]
[355964261,1741735837165,-151.0,9.298e-05,2]
[355964262,1741735837174,-151.0,9.298e-05,2]
[355964263,1741735837184,-151.0,9.298e-05,2]
[355964264,1741735837198,-151.0,9.298e-05,2]
[355964265,1741735837209,-500.0,9.298e-05,2]
[355964266,1741735837218,-780.55,9.298e-05,2]
[355964267,1741735837227,-500.0,9.298e-05,2]
[355964268,1741735837236,-500.0,9.298e-05,2]
[355964269,1741735837246,-500.0,9.298e-05,2]
[355964270,1741735837255,-561.56,9.298e-05,2]
[355964271,1741735837265,-151.0,9.298e-05,2]
[355964272,1741735837277,-500.0,9.298e-05,2]
[355964273,1741735837287,-151.0,9.298e-05,2]
[355964274,1741735837296,-151.0,9.298e-05,2]
[355964275,1741735837305,-151.0,9.298e-05,2]
[355964276,1741735837315,-928.95,9.298e-05,2]
[355964277,1741735837324,-500.0,9.298e-05,2]
[355964278,1741735837334,-816.07,9.298e-05,2]
[355964279,1741735837343,-500.0,9.298e-05,2]
[355964280,1741735837353,-500.0,9.298e-05,2]
[355964281,1741735837362,-500.0,9.298e-05,2]
[355964282,1741735837371,-500.0,9.298e-05,2]
[355964283,1741735837380,-529.0,9.298e-05,2]
[355964284,1741735837390,-500.0,9.298e-05,2]
[355964285,1741735837399,-500.0,9.298e-05,2]
[355964286,1741735837409,-677.31,9.298e-05,2]
[355964287,1741735837419,-621.75,9.298e-05,2]
[355964288,1741735837428,-151.0,9.298e-05,2]
[355964289,1741735837437,-564.97,9.298e-05,2]
[355964290,1741735837446,-151.0,9.298e-05,2]
[355964291,1741735837455,-151.0,9.298e-05,2]
[355964292,1741735837465,-151.0,9.298e-05,2]
[355964293,1741735837474,-151.0,9.298e-05,2]
[355964294,1741735837484,-500.0,9.298e-05,2]
[355964295,1741735837493,-500.0,9.298e-05,2]
[355964296,1741735837502,-500.0,9.298e-05,2]
[355964297,1741735837511,-625.38,9.298e-05,2]
[355964298,1741735837521,-500.0,9.298e-05,2]
[355964299,1741735837530,-500.0,9.298e-05,2]
[355964300,1741735837540,-500.0,9.298e-05,2]
[355964301,1741735837550,-151.0,9.298e-05,2]
[355964302,1741735837559,-151.0,9.298e-05,2]
[355964303,1741735837568,-151.0,9.298e-05,2]
[355964304,1741735837578,-151.0,9.298e-05,2]
[355964305,1741735837587,-790.96,9.298e-05,2]
[355964306,1741735837597,-151.0,9.298e-05,2]
[355964307,1741735837606,-151.0,9.298e-05,2]
[355964308,1741735837615,-151.0,9.298e-05,2]
[355964309,1741735837625,-151.0,9.298e-05,2]
[355964310,1741735837634,-151.0,9.298e-05,2]
[355964311,1741735837644,-151.0,9.298e-05,2]
[355964312,1741735837653,-151.0,9.298e-05,2]
[355964313,1741735837663,-151.0,9.298e-05,2]
[355964314,1741735837672,-151.0,9.298e-05,2]
[355964315,1741735837682,-151.0,9.298e-05,2]
[355964316,1741735837691,-151.0,9.298e-05,2]
[355964317,1741735837702,-151.0,9.298e-05,2]
[355964318,1741735837711,-151.0,9.298e-05,2]
[355964319,1741735837720,-151.0,9.298e-05,2]
[355964320,1741735837730,-147.85039671,9.298e-05,2]
[355964321,1741735837769,-272.80967872,9.298e-05,2]
[355964322,1741735837787,-79.33992457,9.298e-05,2]
[355964323,1741735837796,-151.0,9.298e-05,2]
[355964324,1741735837806,-151.0,9.298e-05,2]
[355964325,1741735837815,-151.0,9.298e-05,2]
[355964326,1741735837825,-151.0,9.298e-05,2]
[355964327,1741735837834,-145.67887543,9.298e-05,2]
[355964329,1741735837863,-5.32112457,9.298e-05,2]
[355964330,1741735837872,-485.74542704,9.298e-05,2]
[355964331,1741735837881,-500.0,9.298e-05,2]
[355964332,1741735837891,-500.0,9.298e-05,2]
[355964333,1741735837899,-260.772336,9.298e-05,2]
[355964334,1741735837909,-260.772336,9.298e-05,2]
[355964335,1741735837918,-260.772336,9.298e-05,2]
[355964337,1741735837928,-260.772336,9.298e-05,2]
[355964338,1741735837938,-151.0,9.298e-05,2]
[355964340,1741735837947,-260.772336,9.298e-05,2]
[355964342,1741735837957,-151.0,9.298e-05,2]
[355964343,1741735837967,-151.0,9.298e-05,2]
[355964344,1741735837976,-500.0,9.298e-05,2]
[355964345,1741735837985,-151.0,9.298e-05,2]
[355964346,1741735837995,-282.55505,9.298e-05,2]
[355964347,1741735838004,-500.0,9.298e-05,2]
[355964348,1741735838014,-260.772336,9.298e-05,2]
[355964349,1741735838023,-260.772336,9.298e-05,2]
[355964350,1741735838033,-260.772336,9.298e-05,2]
[355964351,1741735838043,-260.772336,9.298e-05,2]
[355964352,1741735838052,-260.772336,9.298e-05,2]